bitfinex/quotes_BTCUSD_20240901
["timestamp","ask_amount","ask_price","bid_price","bid_amount"]
[1725220279361,0.669118,58548.0,58547.0,0.02659937]
[1725220279842,0.669118,58548.0,58547.0,0.013]
[1725220281140,0.327518,58548.0,58547.0,0.013]
[1725220281351,0.613218,58548.0,58547.0,0.013]
[1725220281767,0.613218,58548.0,58547.0,0.02659937]
[1725220281997,0.613218,58548.0,58547.0,0.013]
[1725220282175,0.613218,58548.0,58547.0,0.02659937]
[1725220282333,0.613218,58548.0,58547.0,0.013]
[1725220282533,0.613218,58548.0,58547.0,0.02659937]
[1725220282740,0.613218,58548.0,58547.0,0.013]
[1725220283208,0.613218,58548.0,58547.0,0.02659937]
[1725220283416,0.613218,58548.0,58547.0,0.04845174]
[1725220284440,0.271618,58548.0,58547.0,0.09974147]
[1725220284686,0.271618,58548.0,58547.0,0.0778891]
[1725220284923,0.271618,58548.0,58547.0,0.02659937]
[1725220285177,0.271618,58548.0,58547.0,0.0778891]
[1725220286352,0.271618,58548.0,58547.0,0.02659937]
[1725220288620,0.100818,58548.0,58547.0,0.02659937]
[1725220288820,0.000818,58548.0,58547.0,0.02659937]
[1725220290491,0.171618,58548.0,58547.0,0.02659937]
[1725220290737,0.271618,58548.0,58547.0,0.02659937]
[1725220291207,0.271618,58548.0,58547.0,0.10361304]
[1725220291437,0.271618,58548.0,58547.0,0.10361457]
[1725220292172,0.271618,58548.0,58547.0,0.02659937]
[1725220293836,0.613218,58548.0,58547.0,0.02659937]
[1725220294505,0.613218,58548.0,58547.0,0.07794673]
[1725220294723,0.613218,58548.0,58547.0,0.07884653]
[1725220295798,0.613218,58548.0,58547.0,0.07885142]
[1725220297076,0.613218,58548.0,58547.0,0.02749917]
[1725220297908,0.613218,58548.0,58547.0,0.07885511]
[1725220298488,0.613218,58548.0,58547.0,0.05335797]
[1725220298692,0.613218,58548.0,58547.0,0.13038635]
[1725220299098,0.613218,58548.0,58547.0,0.05335797]
[1725220299557,0.613218,58548.0,58547.0,0.13039683]
[1725220300359,0.613218,58548.0,58547.0,0.05335797]
[1725220300979,0.613218,58548.0,58547.0,0.1304008]
[1725220302766,0.613218,58548.0,58547.0,0.05335797]
[1725220303171,0.271618,58548.0,58547.0,0.13565797]
[1725220304450,0.000818,58548.0,58547.0,1.15337448]
[1725220304639,0.000818,58548.0,58547.0,1.05566997]
[1725220304831,0.000818,58548.0,58547.0,1.39727497]
[1725220305511,0.000818,58548.0,58547.0,1.61976405]
[1725220305741,0.000818,58548.0,58547.0,1.39827497]
[1725220305944,0.000818,58548.0,58547.0,1.41227497]
[1725220306176,0.50540786,58575.0,58562.0,1.344313]
[1725220306377,0.50540786,58575.0,58562.0,1.43820009]
[1725220306699,0.50540786,58575.0,58562.0,1.23839115]
[1725220306921,0.50540786,58575.0,58562.0,0.15758927]
[1725220306922,0.170745,58567.0,58562.0,0.15758927]
[1725220307129,0.0473,58572.0,58562.0,0.23446565]
[1725220307130,0.0583,58571.0,58562.0,0.23446565]
[1725220307347,0.229034,58571.0,58562.0,0.43108345]
[1725220307563,0.229034,58571.0,58562.0,0.23467806]
[1725220307564,0.170744,58568.0,58562.0,0.23467806]
[1725220307769,0.170744,58568.0,58562.0,0.35420707]
[1725220308183,0.270736,58570.0,58562.0,0.35420707]
[1725220308419,0.170739,58569.0,58562.0,0.35420707]
[1725220308624,0.1,58568.0,58562.0,0.35420707]
[1725220308842,0.1,58568.0,58562.0,0.36820707]
[1725220309046,0.270742,58568.0,58562.0,0.72372507]
[1725220309458,0.270742,58568.0,58562.0,0.38220707]
[1725220309884,0.03497498,58563.0,58562.0,0.38220707]
[1725220312134,0.02997498,58563.0,58562.0,0.38220707]
[1725220313310,0.00318,58563.0,58562.0,0.38220707]
[1725220318171,0.00318,58563.0,58562.0,0.72372507]
[1725220320192,0.00318,58563.0,58562.0,0.38220707]
[1725220321072,0.232236,58563.0,58562.0,0.04158927]
[1725220321308,0.91526,58563.0,58562.0,0.04158927]
[1725220321523,1.01526,58563.0,58562.0,0.028]
[1725220322177,1.01526,58563.0,58562.0,0.014]
[1725220322397,1.01526,58563.0,58557.0,0.0008998]
[1725220322398,0.17077,58558.0,58557.0,0.0008998]
[1725220322649,0.512311,58558.0,58557.0,0.0008998]
[1725220322861,0.512311,58558.0,58557.0,0.01382243]
[1725220323076,0.512311,58558.0,58557.0,0.0008998]
[1725220323286,0.512311,58558.0,58557.0,0.01382243]
[1725220323287,0.53910859,58558.0,58557.0,0.01382243]
[1725220323492,0.53910859,58558.0,58557.0,0.0008998]
[1725220323493,0.19756759,58558.0,58557.0,0.0008998]
[1725220323949,0.19756759,58558.0,58557.0,0.01382243]
[1725220324154,0.19756759,58558.0,58557.0,0.0008998]
[1725220324363,0.19756759,58558.0,58557.0,0.04182243]
[1725220324570,0.19756759,58558.0,58557.0,0.0288998]
[1725220324773,0.19756759,58558.0,58557.0,0.04182243]
[1725220324984,0.53910859,58558.0,58557.0,0.04182243]
[1725220326395,0.19756759,58558.0,58557.0,0.04182243]
[1725220326600,0.19756759,58558.0,58557.0,0.06308307]
[1725220327865,0.17077,58558.0,58557.0,0.06308307]
[1725220328075,0.19756765,58558.0,58557.0,0.06308307]
[1725220328283,0.02679765,58558.0,58557.0,0.37435607]
[1725220328493,0.02679765,58558.0,58557.0,0.71590307]
[1725220328703,0.02679765,58558.0,58557.0,1.05745007]
[1725220329770,0.00318,58563.0,58562.0,0.657777]
[1725220329988,0.00318,58563.0,58562.0,1.10518209]
[1725220330223,0.00318,58563.0,58562.0,1.45961936]
[1725220330426,0.00318,58563.0,58562.0,1.58742989]
[1725220330646,0.00318,58563.0,58562.0,1.45961936]
[1725220330863,0.00318,58563.0,58562.0,1.47888]
[1725220331080,0.00318,58563.0,58562.0,1.49488]
[1725220331326,0.00318,58563.0,58562.0,1.56952447]
[1725220331754,0.00318,58563.0,58562.0,1.58352447]
[1725220331960,0.00318,58563.0,58562.0,1.50688]
[1725220332173,0.00318,58563.0,58562.0,1.58351471]
[1725220333242,0.00318,58563.0,58562.0,1.58551471]
[1725220333668,0.00318,58563.0,58562.0,1.58351471]
[1725220333939,0.00318,58563.0,58562.0,1.58551471]
[1725220335131,0.00318,58563.0,58562.0,1.97558337]
[1725220335364,0.00318,58563.0,58562.0,2.00112972]
[1725220335582,0.00318,58563.0,58562.0,1.88944903]
[1725220336027,0.00318,58563.0,58562.0,1.873398]
[1725220336918,0.00318,58563.0,58562.0,1.87544803]
[1725220337163,0.00318,58563.0,58562.0,1.857398]
[1725220337403,0.00318,58563.0,58562.0,1.859398]
[1725220338338,0.00318,58563.0,58562.0,1.873398]
[1725220340545,0.00318,58563.0,58562.0,1.871398]
[1725220340946,0.00318,58563.0,58562.0,1.873398]
[1725220341174,0.00818,58579.0,58578.0,0.185712]
[1725220341451,0.07938697,58599.0,58596.0,0.17066]
[1725220341452,0.01788697,58599.0,58596.0,0.17066]
[1725220341688,0.0615,58605.0,58596.0,0.60586709]
[1725220341932,0.0615,58605.0,58596.0,0.10678346]
[1725220342172,0.0615,58605.0,58599.0,0.09388709]
[1725220342389,0.00818,58607.0,58602.0,0.09388709]
[1725220342877,0.00818,58607.0,58600.0,0.03415432]
[1725220342878,0.170635,58605.0,58603.0,0.01289166]
[1725220343112,0.00818,58607.0,58603.0,0.01289166]
[1725220343333,0.00818,58607.0,58600.0,0.02126064]
[1725220343334,0.00818,58607.0,58606.0,0.853152]
[1725220343553,0.00818,58607.0,58606.0,0.25042412]
[1725220343786,0.00818,58607.0,58606.0,0.01288964]
[1725220343787,0.178808,58607.0,58606.0,0.01288964]
[1725220344278,0.00818,58607.0,58601.0,0.170643]
[1725220344506,0.00818,58607.0,58606.0,0.01288964]
[1725220344714,0.170631,58606.0,58601.0,0.170643]
[1725220344937,0.170631,58606.0,58602.0,0.0170643]
[1725220345597,0.170634,58605.0,58602.0,0.0170643]
[1725220345819,0.170637,58604.0,58599.0,0.17065]
[1725220346256,0.170635,58605.0,58599.0,0.170649]
[1725220346479,0.170635,58605.0,58601.0,0.01]
[1725220346701,0.00818,58607.0,58604.0,0.170635]
[1725220346909,0.00818,58607.0,58602.0,0.170641]
[1725220347133,0.00818,58607.0,58602.0,0.184641]
[1725220347134,0.178808,58607.0,58602.0,0.184641]
[1725220347360,0.178808,58607.0,58602.0,0.170641]
[1725220347574,0.178808,58607.0,58603.0,0.0203641]
[1725220348000,0.00818,58607.0,58604.0,0.012]
[1725220348742,0.00818,58607.0,58605.0,0.1474]
[1725220348997,0.00818,58607.0,58605.0,0.15081233]
[1725220349243,0.00818,58607.0,58606.0,0.06780102]
[1725220349470,0.00318,58607.0,58606.0,0.06780102]
[1725220349760,0.511909,58604.0,58603.0,0.012]
[1725220349955,0.170636,58604.0,58603.0,0.014]
[1725220350163,0.170636,58604.0,58599.0,0.17065]
[1725220350382,0.00318,58607.0,58605.0,0.005]
[1725220350603,0.00318,58607.0,58606.0,1.00896395]
[1725220350819,0.00318,58607.0,58606.0,1.02328577]
[1725220351043,0.02995232,58607.0,58606.0,1.01987382]
[1725220351950,0.02995232,58607.0,58606.0,1.03387382]
[1725220352175,0.02995232,58607.0,58606.0,1.43874367]
[1725220352451,0.0615,58625.0,58611.0,0.005]
[1725220352682,0.170582,58623.0,58617.0,0.170596]
[1725220353196,0.170582,58623.0,58618.0,0.170595]
[1725220353394,0.170582,58623.0,58618.0,0.18490786]
[1725220353605,0.170582,58623.0,58619.0,0.02455627]
[1725220353823,0.170587,58621.0,58619.0,0.02455627]
[1725220354041,0.170582,58623.0,58620.0,0.01431136]
[1725220354488,0.170582,58623.0,58618.0,0.170594]
[1725220354489,0.10818,58622.0,58618.0,0.170594]
[1725220354697,0.10818,58622.0,58621.0,0.01431061]
[1725220354923,0.10818,58622.0,58621.0,0.01989046]
[1725220355145,0.00818,58622.0,58621.0,0.03420107]
[1725220355364,0.00818,58622.0,58621.0,0.01431061]
[1725220355585,0.00818,58622.0,58619.0,0.170591]
[1725220355843,0.00818,58622.0,58621.0,0.01431061]
[1725220356073,0.00818,58622.0,58620.0,0.01431136]
[1725220356310,0.00818,58622.0,58621.0,0.01431061]
[1725220356526,0.00818,58622.0,58621.0,0.02831061]
[1725220356949,0.00818,58622.0,58621.0,0.01431061]
[1725220357173,0.00818,58622.0,58618.0,0.170595]
[1725220357387,0.00818,58622.0,58620.0,0.028]
[1725220357863,0.00818,58622.0,58621.0,0.70202262]
[1725220358081,0.00818,58622.0,58621.0,1.05719662]
[1725220358759,0.00818,58622.0,58621.0,1.07119662]
[1725220359928,0.00818,58622.0,58621.0,1.05719662]
[1725220360795,0.00818,58622.0,58621.0,0.57393111]
[1725220361029,0.00818,58622.0,58621.0,0.04231061]
[1725220361030,0.178764,58622.0,58621.0,0.04231061]
[1725220361240,0.00818,58622.0,58621.0,0.04231061]
[1725220361452,0.00818,58622.0,58621.0,0.028]
[1725220361663,0.00818,58622.0,58621.0,0.04231061]
[1725220362091,0.00818,58622.0,58621.0,0.06360057]
[1725220362545,0.00818,58622.0,58621.0,0.04231061]
[1725220362978,0.178764,58622.0,58621.0,0.04231061]
[1725220363398,0.341159,58624.0,58621.0,0.04231061]
[1725220363829,0.170583,58623.0,58621.0,0.04231061]
[1725220364255,0.170584,58622.0,58621.0,0.04231061]
[1725220364670,0.170584,58622.0,58617.0,0.170597]
[1725220364887,0.170584,58622.0,58621.0,0.026]
[1725220365343,0.170584,58622.0,58621.0,0.04031061]
[1725220365556,0.170584,58622.0,58621.0,0.02831061]
[1725220365776,0.170584,58622.0,58621.0,0.04231061]
[1725220366203,0.170584,58622.0,58621.0,0.02831061]
[1725220366417,0.171401,58622.0,58621.0,0.04820137]
[1725220367085,0.171401,58622.0,58621.0,0.06220137]
[1725220367339,0.512569,58622.0,58621.0,0.04231061]
[1725220367563,0.962537,58622.0,58621.0,0.04231061]
[1725220367777,0.962537,58622.0,58621.0,0.028]
[1725220367778,1.403705,58622.0,58621.0,0.028]
[1725220368213,1.43047567,58622.0,58621.0,0.028]
[1725220370675,1.43047567,58622.0,58621.0,0.014]
[1725220370891,1.43047567,58622.0,58621.0,0.018]
[1725220371329,1.43047567,58622.0,58621.0,0.004]
[1725220372252,1.42547567,58622.0,58621.0,0.004]
[1725220372730,1.76664367,58622.0,58621.0,0.011]
[1725220372955,1.76664367,58622.0,58621.0,0.004]
[1725220373399,1.76664367,58622.0,58621.0,0.009]
[1725220373619,1.76664367,58622.0,58621.0,0.005]
[1725220374091,1.76664367,58622.0,58621.0,0.007]
[1725220380908,2.10866467,58622.0,58621.0,0.007]
[1725220382154,1.91777367,58622.0,58621.0,0.007]
[1725220384077,1.76664367,58622.0,58621.0,0.007]
[1725220386469,2.26664367,58622.0,58621.0,0.007]
[1725220390621,2.21934367,58622.0,58621.0,0.007]
[1725220394269,3.21717367,58622.0,58621.0,0.007]
[1725220394496,3.11459767,58622.0,58621.0,0.007]
[1725220394923,3.10429067,58622.0,58621.0,0.007]
[1725220395530,2.92377567,58622.0,58621.0,0.007]
[1725220396146,2.85827667,58622.0,58621.0,0.007]
[1725220396346,2.84734167,58622.0,58621.0,0.007]
[1725220396548,2.77014167,58622.0,58621.0,0.007]
[1725220397994,2.75363767,58622.0,58621.0,0.007]
[1725220398807,2.58351167,58622.0,58621.0,0.007]
[1725220399392,2.558741,58622.0,58621.0,0.007]
[1725220399806,2.556741,58622.0,58621.0,0.007]
[1725220400668,2.558741,58622.0,58621.0,0.007]
[1725220402811,2.558741,58622.0,58598.0,0.50540786]
[1725220402812,0.3000516,58600.0,58598.0,0.50540786]
[1725220403238,0.3000516,58600.0,58599.0,0.01448264]
[1725220403646,0.3000516,58600.0,58595.0,0.170662]
[1725220403852,0.3000516,58600.0,58599.0,0.01448264]
[1725220404063,0.3000516,58600.0,58595.0,0.170662]
[1725220404064,0.3000516,58600.0,58595.0,0.221784]
[1725220404268,0.3000516,58600.0,58599.0,0.01448264]
[1725220404736,0.3000516,58600.0,58595.0,0.170662]
[1725220404956,0.3010516,58600.0,58599.0,0.014]
[1725220405164,0.3010516,58600.0,58599.0,0.02848264]
[1725220406019,0.1304026,58600.0,58599.0,0.17278264]
[1725220407150,0.1304026,58600.0,58599.0,0.18678264]
[1725220409231,0.9836426,58600.0,58599.0,0.18678264]
[1725220409441,1.3517158,58600.0,58599.0,0.18178264]
[1725220409864,1.3517158,58600.0,58599.0,0.1673]
[1725220410288,1.3517158,58600.0,58599.0,0.1533]
[1725220410974,1.3507158,58600.0,58599.0,0.1443]
[1725220411203,1.3517158,58600.0,58599.0,0.1543]
[1725220412078,1.3507158,58600.0,58599.0,0.1443]
[1725220412329,1.3517158,58600.0,58599.0,0.1613]
[1725220412544,1.3517158,58600.0,58599.0,0.1543]
[1725220413175,1.3517158,58600.0,58599.0,0.1623]
[1725220414439,1.3517158,58600.0,58599.0,0.1631998]
[1725220418227,1.3517158,58600.0,58599.0,0.17782875]
[1725220418718,1.0104198,58600.0,58599.0,0.17782875]
[1725220418954,1.0104198,58600.0,58599.0,0.1631998]
[1725220419414,1.0104198,58600.0,58599.0,0.17782875]
[1725220425035,1.0104198,58600.0,58599.0,0.03352875]
[1725220425683,1.3517158,58600.0,58599.0,0.03352875]
[1725220425905,1.1104198,58600.0,58599.0,0.03352875]
[1725220426120,1.1112378,58600.0,58599.0,0.0188998]
[1725220426405,1.1112378,58600.0,58599.0,0.0819998]
[1725220426816,1.1112378,58600.0,58599.0,0.09662875]
[1725220428733,0.2579978,58600.0,58599.0,0.17832875]
[1725220429357,0.1579978,58600.0,58599.0,0.17832875]
[1725220430241,0.1579978,58600.0,58599.0,0.40021539]
[1725220431111,0.1579978,58600.0,58599.0,0.34897975]
[1725220431540,0.1579978,58600.0,58599.0,0.69028175]
[1725220431739,0.1579978,58600.0,58599.0,0.76713522]
[1725220431946,0.1579978,58600.0,58599.0,1.11343722]
[1725220432158,0.1579978,58600.0,58599.0,1.54359269]
[1725220432366,0.1312206,58600.0,58599.0,1.38788575]
[1725220432574,0.1312206,58600.0,58599.0,1.41088575]
[1725220432781,0.1312206,58600.0,58599.0,1.75418775]
[1725220432782,0.0646206,58600.0,58599.0,1.75418775]
[1725220432987,0.0646206,58600.0,58599.0,1.74618775]
[1725220433418,0.50540786,58621.0,58620.0,0.0817]
[1725220433629,0.500817,58622.0,58620.0,0.09631326]
[1725220433863,0.500817,58622.0,58621.0,0.00963133]
[1725220433864,0.671401,58622.0,58621.0,0.00963133]
[1725220434085,0.671401,58622.0,58620.0,0.09631326]
[1725220434086,0.771401,58622.0,58620.0,0.09631326]
[1725220434296,0.1,58621.0,58620.0,0.0817]
[1725220434723,0.1,58621.0,58620.0,0.0937]
[1725220435186,0.1,58621.0,58620.0,0.1201297]
[1725220435412,0.952935,58621.0,58616.0,0.0817]
[1725220435633,0.441174,58621.0,58620.0,0.011]
[1725220435862,0.611761,58621.0,58620.0,0.023]
[1725220436092,0.611761,58621.0,58620.0,0.012]
[1725220437817,0.1,58621.0,58620.0,0.012]
[1725220438031,0.1,58621.0,58620.0,0.0762]
[1725220438237,0.1,58621.0,58620.0,0.0872]
[1725220439076,0.1,58621.0,58620.0,0.0642]
[1725220439284,0.1,58621.0,58620.0,0.1068497]
[1725220439483,0.1,58621.0,58620.0,0.1208497]
[1725220440107,0.270587,58621.0,58620.0,0.025]
[1725220440346,0.952935,58621.0,58620.0,0.025]
[1725220440770,0.952935,58621.0,58620.0,0.014]
[1725220440987,1.294109,58621.0,58620.0,0.028]
[1725220441199,1.294109,58621.0,58620.0,0.014]
[1725220441411,0.441174,58621.0,58608.0,0.0642]
[1725220441640,0.170622,58609.0,58608.0,0.0642]
[1725220441863,0.341235,58611.0,58608.0,0.0642]
[1725220442060,0.02677201,58609.0,58608.0,0.0642]
[1725220442481,0.02677201,58609.0,58608.0,0.0702]
[1725220442744,0.19739401,58609.0,58608.0,0.0782]
[1725220443153,0.19739401,58609.0,58608.0,0.1157037]
[1725220443357,0.170622,58609.0,58608.0,0.1157037]
[1725220443556,0.170622,58609.0,58608.0,0.0782]
[1725220444169,0.170622,58609.0,58608.0,0.0702]
[1725220444532,0.170622,58609.0,58608.0,0.0782]
[1725220444820,0.511853,58611.0,58608.0,0.0922]
[1725220445401,0.170618,58611.0,58609.0,0.01568692]
[1725220445604,0.170618,58611.0,58610.0,0.03536169]
[1725220445808,0.170618,58611.0,58610.0,0.05104777]
[1725220446660,0.19739043,58611.0,58610.0,0.05104777]
[1725220447689,0.19739043,58611.0,58610.0,0.06504777]
[1725220447909,0.19739043,58611.0,58610.0,0.07904777]
[1725220449547,0.87985443,58611.0,58610.0,0.04368608]
[1725220449772,0.53862243,58611.0,58610.0,0.04368608]
[1725220450027,0.53862243,58611.0,58610.0,0.028]
[1725220453741,0.51185,58611.0,58610.0,0.028]
[1725220454181,0.53862296,58611.0,58610.0,0.028]
[1725220454749,0.53862296,58611.0,58610.0,0.04368608]
[1725220455399,0.51185,58611.0,58610.0,0.04368608]
[1725220457724,0.000818,58615.0,58611.0,0.0787]
[1725220457939,0.000818,58615.0,58612.0,0.22887962]
[1725220458141,0.000818,58615.0,58614.0,0.571922]
[1725220458559,0.02758737,58615.0,58614.0,0.58760472]
[1725220459641,0.02758737,58615.0,58614.0,0.94281972]
[1725220460559,0.02758737,58615.0,58614.0,0.95581972]
[1725220460776,0.02758737,58615.0,58614.0,1.03451972]
[1725220461001,0.02758737,58615.0,58614.0,1.00751972]
[1725220461220,0.02758737,58615.0,58614.0,1.05860145]
[1725220461435,0.02758737,58615.0,58614.0,1.08660145]
[1725220461651,0.02758737,58615.0,58614.0,1.02151972]
[1725220461912,0.02758737,58615.0,58614.0,1.02651972]
[1725220462093,0.02758737,58615.0,58614.0,1.43281645]
[1725220462507,0.02758737,58615.0,58614.0,1.38173472]
[1725220462951,0.02758737,58615.0,58614.0,1.09159177]
[1725220463164,0.02758737,58615.0,58614.0,1.04051972]
[1725220463378,0.000818,58615.0,58614.0,1.04051972]
[1725220464473,0.000818,58615.0,58614.0,1.09159177]
[1725220464691,0.000818,58615.0,58614.0,1.04051972]
[1725220466807,0.02758589,58615.0,58614.0,1.4583443]
[1725220468482,0.02758589,58615.0,58614.0,1.39173472]
[1725220468697,0.02758589,58615.0,58614.0,1.39373472]
[1725220469323,0.02758589,58615.0,58614.0,1.52141735]
[1725220469539,0.02758589,58615.0,58614.0,1.51941735]
[1725220469945,0.02758589,58615.0,58614.0,1.39173472]
[1725220470572,0.02758589,58615.0,58614.0,1.75594972]
[1725220470837,0.000818,58615.0,58614.0,1.75594972]
[1725220471908,0.000818,58615.0,58614.0,1.37973472]
[1725220472815,0.24656913,58622.0,58621.0,0.511761]
[1725220473225,0.24656913,58622.0,58621.0,0.52743783]
[1725220473676,0.24656913,58622.0,58621.0,0.58549029]
[1725220474289,0.24656913,58622.0,58621.0,0.59949029]
[1725220475141,0.24656913,58622.0,58621.0,0.61349029]
[1725220475561,0.24656913,58622.0,58621.0,0.66457704]
[1725220475771,0.24656913,58622.0,58621.0,0.61349029]
[1725220476382,0.24656913,58622.0,58621.0,0.66457704]
[1725220477274,0.24656913,58622.0,58621.0,0.61349029]
[1725220477913,0.24656913,58622.0,58621.0,0.67889029]
[1725220479762,0.27333485,58622.0,58621.0,0.66461881]
[1725220480009,0.27333485,58622.0,58621.0,0.61349029]
[1725220480219,0.27333485,58622.0,58621.0,1.00579429]
[1725220480444,0.27333485,58622.0,58621.0,0.6646173]
[1725220480863,0.27333485,58622.0,58621.0,0.61349029]
[1725220481965,0.27333485,58622.0,58621.0,0.66461071]
[1725220482176,0.27333485,58622.0,58621.0,0.61349029]
[1725220482577,0.27333485,58622.0,58621.0,0.27231629]
[1725220482799,0.33563485,58622.0,58621.0,0.09479712]
[1725220483693,0.27333485,58622.0,58621.0,0.26538412]
[1725220483902,0.24656913,58622.0,58621.0,0.26538412]
[1725220484976,0.24656913,58622.0,58621.0,0.55543783]
[1725220485382,0.24738713,58622.0,58621.0,0.6065517]
[1725220485633,0.24738713,58622.0,58621.0,0.55543783]
[1725220485851,0.24738713,58622.0,58621.0,0.60655279]
[1725220486535,0.24738713,58622.0,58621.0,0.55543783]
[1725220487001,0.24738713,58622.0,58621.0,0.62083783]
[1725220487678,0.24738713,58622.0,58621.0,0.69751234]
[1725220489284,0.24738713,58622.0,58621.0,1.03868634]
[1725220490033,0.24738713,58622.0,58621.0,1.03868538]
[1725220491302,0.24738713,58622.0,58621.0,1.03868711]
[1725220491721,0.24738713,58622.0,58621.0,0.96201183]
[1725220492139,0.24738713,58622.0,58621.0,0.55543783]
[1725220492359,0.24738713,58622.0,58621.0,0.63211699]
[1725220492805,0.24738713,58622.0,58621.0,0.55543783]
[1725220493399,0.24738713,58622.0,58621.0,0.63211699]
[1725220493982,0.24738713,58622.0,58621.0,0.55543783]
[1725220494216,0.24738713,58622.0,58621.0,0.63211699]
[1725220495231,0.24738713,58622.0,58621.0,0.63212883]
[1725220495433,0.24738713,58622.0,58621.0,0.63213036]
[1725220495632,0.24738713,58622.0,58621.0,0.63213512]
[1725220496707,0.27415302,58622.0,58621.0,0.63213512]
[1725220497726,0.27415302,58622.0,58621.0,0.63303492]
[1725220498398,0.27415302,58622.0,58621.0,0.55633763]
[1725220498979,0.33685302,58622.0,58621.0,0.12131024]
[1725220499443,0.33685302,58622.0,58621.0,0.07970972]
[1725220499686,0.31008713,58622.0,58621.0,0.15646384]
[1725220500177,0.24738713,58622.0,58621.0,0.32705084]
[1725220500426,0.24738713,58622.0,58621.0,0.07970972]
[1725220501157,0.24738713,58622.0,58621.0,0.25029672]
[1725220501404,0.24738713,58622.0,58621.0,0.35252812]
[1725220502346,0.24738713,58622.0,58621.0,1.54730798]
[1725220502581,0.24738713,58622.0,58621.0,1.41951872]
[1725220503419,0.24738713,58622.0,58621.0,1.57286583]
[1725220503834,0.24738713,58622.0,58621.0,1.41951872]
[1725220506100,0.24738713,58622.0,58621.0,1.51307866]
[1725220509426,0.24738713,58622.0,58621.0,1.51507866]
[1725220510455,0.24738713,58622.0,58621.0,1.51307866]
[1725220516829,0.014783,58622.0,58621.0,1.51307866]
[1725220523032,0.014783,58622.0,58621.0,0.89751163]
[1725220523253,0.014783,58622.0,58621.0,0.55633763]
[1725220523254,0.161383,58622.0,58621.0,0.55633763]
[1725220523453,0.161383,58622.0,58621.0,0.34325732]
[1725220523659,0.331967,58622.0,58621.0,0.1470517]
[1725220523857,0.331967,58622.0,58621.0,0.04457663]
[1725220524612,0.331967,58622.0,58621.0,0.09581694]
[1725220524822,0.331967,58622.0,58621.0,0.03057663]
[1725220525033,0.331967,58622.0,58621.0,0.08181694]
[1725220525242,0.331967,58622.0,58621.0,0.04457663]
[1725220525448,0.331967,58622.0,58621.0,0.09581694]
[1725220525854,0.331967,58622.0,58621.0,0.08181694]
[1725220526074,0.331967,58622.0,58621.0,0.04457663]
[1725220527557,0.35873486,58622.0,58621.0,0.04457663]
[1725220528444,0.35873486,58622.0,58621.0,0.0957951]
[1725220529023,0.18815086,58622.0,58621.0,0.0957951]
[1725220529576,0.69990286,58622.0,58621.0,0.04457663]
[1725220529787,0.18815086,58622.0,58621.0,0.04457663]
[1725220529991,0.18815086,58622.0,58621.0,0.12330842]
[1725220530205,0.35873486,58622.0,58621.0,0.12330842]
[1725220532327,0.35873486,58622.0,58621.0,0.12329537]
[1725220532749,0.35873486,58622.0,58621.0,0.12329447]
[1725220533455,0.331967,58622.0,58621.0,0.09578115]
[1725220533671,0.331967,58622.0,58621.0,0.04457663]
[1725220534294,0.673135,58622.0,58621.0,0.04457663]
[1725220534791,1.014303,58622.0,58621.0,0.04457663]
[1725220535215,0.673135,58622.0,58621.0,0.04457663]
[1725220536461,0.673135,58622.0,58621.0,0.0288998]
[1725220536680,1.04107151,58622.0,58621.0,0.0288998]
[1725220537346,1.04107151,58622.0,58621.0,0.0148998]
[1725220537581,1.014303,58622.0,58621.0,0.0148998]
[1725220538037,1.014303,58622.0,58621.0,0.0008998]
[1725220538252,1.014303,58622.0,58621.0,0.0228998]
[1725220538471,1.014303,58622.0,58621.0,0.0138998]
[1725220538709,1.014303,58622.0,58621.0,0.0008998]
[1725220538921,1.014303,58622.0,58621.0,0.0098998]
[1725220539649,1.355471,58622.0,58621.0,0.0098998]
[1725220540298,1.355471,58622.0,58621.0,0.0168998]
[1725220540709,1.38224107,58622.0,58621.0,0.0168998]
[1725220543148,1.96163318,58622.0,58621.0,0.0168998]
[1725220543375,1.82340907,58622.0,58621.0,0.0168998]
[1725220543615,1.48224107,58622.0,58621.0,0.0168998]
[1725220544045,1.48224107,58622.0,58621.0,0.0078998]
[1725220544487,1.48524107,58622.0,58621.0,0.0018998]
[1725220544720,1.48524107,58622.0,58621.0,0.0008998]
[1725220544929,1.66834107,58622.0,58621.0,0.0018998]
[1725220545166,1.48824107,58622.0,58621.0,0.0008998]
[1725220545378,1.48224107,58622.0,58621.0,0.0008998]
[1725220545584,1.48324107,58622.0,58621.0,0.0008998]
[1725220547330,1.82440907,58622.0,58621.0,0.0008998]
[1725220547515,1.456471,58622.0,58621.0,0.0008998]
[1725220548383,1.797639,58622.0,58621.0,0.0008998]
[1725220549267,1.456471,58622.0,58621.0,0.0008998]
[1725220549937,1.797639,58622.0,58621.0,0.0008998]
[1725220550560,1.799639,58622.0,58621.0,0.0008998]
[1725220553125,1.82641355,58622.0,58621.0,0.0008998]
[1725220559731,1.93970055,58622.0,58621.0,0.0008998]
[1725220559850,1.96270055,58622.0,58621.0,0.0008998]
[1725220560264,2.30386855,58622.0,58621.0,0.0008998]
[1725220560926,1.96270055,58622.0,58621.0,0.0008998]
[1725220561391,1.84941355,58622.0,58621.0,0.0008998]
[1725220578109,1.84741355,58622.0,58621.0,0.0008998]
[1725220582565,1.84941355,58622.0,58621.0,0.0008998]
[1725220583526,1.76801355,58622.0,58621.0,0.0008998]
[1725220585370,1.74301355,58622.0,58621.0,0.0008998]
[1725220585635,1.33664555,58622.0,58621.0,0.0612998]
[1725220585871,0.968703,58622.0,58621.0,0.1363998]
[1725220586114,0.527535,58622.0,58621.0,0.15003978]
[1725220586778,0.527535,58622.0,58621.0,0.16320041]
[1725220587527,0.627535,58622.0,58621.0,0.16320041]
[1725220589177,0.65430556,58622.0,58621.0,0.16320041]
[1725220589661,0.65430556,58622.0,58621.0,0.15003978]
[1725220591251,0.99547356,58622.0,58621.0,0.15003978]
[1725220591814,0.99547356,58622.0,58621.0,0.1363998]
[1725220592901,0.65430556,58622.0,58621.0,0.1363998]
[1725220593121,0.99547356,58622.0,58621.0,0.1363998]
[1725220593338,0.968703,58622.0,58621.0,0.1363998]
[1725220594237,0.627535,58622.0,58621.0,0.1363998]
[1725220594508,0.627535,58622.0,58621.0,0.15003978]
[1725220594755,0.115783,58622.0,58621.0,0.16328526]
[1725220594967,0.186367,58622.0,58621.0,0.16328526]
[1725220595195,0.286367,58622.0,58621.0,0.16328526]